[Event "Titled Tuesday Blitz August 1 Late 2023"]
[White "slidingknight2775"]
[Black "Karwowski, Kacper"]
[BlackFideId "1126032"]
[WhiteElo "2453"]
[BlackElo "2544"]
[Result "1-0"]
[Round "11"]
[TimeControl "180+1"]
[Date "2023.08.01"]
[WhiteClock "0:00:18"]
[BlackClock "0:00:12"]
[Board "57"]

1. Nf3 {[%clk 0:03:00]}  Nf6 {[%clk 0:02:59]} 2. g3 {[%clk 0:03:00]}  g6 {[%clk 0:02:59]} 3. Bg2 {[%clk 0:03:01]}  Bg7 {[%clk 0:03:00]} 4. O-O {[%clk 0:03:01]}  O-O {[%clk 0:03:01]} 5. c4 {[%clk 0:03:02]}  c5 {[%clk 0:03:01]} 6. Nc3 {[%clk 0:03:00]}  Nc6 {[%clk 0:03:01]} 7. d3 {[%clk 0:02:57]}  d6 {[%clk 0:03:00]} 8. Bd2 {[%clk 0:02:53]}  Bg4 {[%clk 0:02:57]} 9. h3 {[%clk 0:02:47]}  Bxf3 {[%clk 0:02:56]} 10. Bxf3 {[%clk 0:02:47]}  Qd7 {[%clk 0:02:57]} 11. Bg2 {[%clk 0:02:47]}  Rab8 {[%clk 0:02:51]} 12. Rb1 {[%clk 0:02:44]}  a6 {[%clk 0:02:49]} 13. a3 {[%clk 0:02:40]}  b5 {[%clk 0:02:48]} 14. cxb5 {[%clk 0:02:41]}  axb5 {[%clk 0:02:49]} 15. b4 {[%clk 0:02:41]}  cxb4 {[%clk 0:02:48]} 16. axb4 {[%clk 0:02:42]}  d5 {[%clk 0:02:43]} 17. Qb3 {[%clk 0:02:35]}  Nd4 {[%clk 0:02:31]} 18. Qd1 {[%clk 0:02:27]}  Rfc8 {[%clk 0:02:15]} 19. Be3 {[%clk 0:01:41]}  Nc6 {[%clk 0:02:10]} 20. Bc5 {[%clk 0:01:28]}  e6 {[%clk 0:02:01]} 21. Qb3 {[%clk 0:01:12]}  h5 {[%clk 0:01:58]} 22. Rfd1 {[%clk 0:00:40]}  d4 {[%clk 0:01:41]} 23. Ne4 {[%clk 0:00:37]}  Nxe4 {[%clk 0:01:41]} 24. Bxe4 {[%clk 0:00:38]}  f5 {[%clk 0:01:42]} 25. Bg2 {[%clk 0:00:38]}  Kh7 {[%clk 0:01:40]} 26. h4 {[%clk 0:00:25]}  Be5 {[%clk 0:01:28]} 27. f4 {[%clk 0:00:23]}  Bd6 {[%clk 0:01:25]} 28. Rdc1 {[%clk 0:00:19]}  Bxc5 {[%clk 0:01:15]} 29. Rxc5 {[%clk 0:00:20]}  Ne7 {[%clk 0:01:16]} 30. Rbc1 {[%clk 0:00:20]}  Rxc5 {[%clk 0:01:16]} 31. Rxc5 {[%clk 0:00:21]}  Rc8 {[%clk 0:01:15]} 32. Qc2 {[%clk 0:00:21]}  Rxc5 {[%clk 0:01:15]} 33. Qxc5 {[%clk 0:00:22]}  Kg7 {[%clk 0:01:15]} 34. Kf2 {[%clk 0:00:22]}  Kf7 {[%clk 0:01:15]} 35. Bf3 {[%clk 0:00:22]}  Nd5 {[%clk 0:00:19]} 36. Qxd4 {[%clk 0:00:21]}  Qd6 {[%clk 0:00:12]} 37. Bxd5 {[%clk 0:00:18]}  Qxd5 {[%clk 0:00:13]} 38. Qxd5 {[%clk 0:00:18]}  exd5 {[%clk 0:00:13]} 39. Ke3 {[%clk 0:00:18]}  Ke6 {[%clk 0:00:14]} 40. Kd4 {[%clk 0:00:18]}  Kd6 {[%clk 0:00:12]} 41. e3 {[%clk 0:00:18]} 1-0


[Site "https://www.chess.com"]

[Event "Titled Tuesday Blitz August 1 Late 2023"]
[White "Kielinkei"]
[Black "ElenGajger"]
[WhiteElo "2430"]
[BlackElo "2540"]
[Result "1-0"]
[Round "11"]
[TimeControl "180+1"]
[Date "2023.08.01"]
[WhiteClock "0:00:06"]
[BlackClock "0:00:00"]
[Board "58"]

1. c4 {[%clk 0:03:00]}  Nf6 {[%clk 0:02:58]} 2. g3 {[%clk 0:03:00]}  g6 {[%clk 0:02:58]} 3. Bg2 {[%clk 0:03:01]}  Bg7 {[%clk 0:02:59]} 4. Nc3 {[%clk 0:03:01]}  O-O {[%clk 0:03:00]} 5. e4 {[%clk 0:03:01]}  c5 {[%clk 0:02:59]} 6. Nge2 {[%clk 0:03:00]}  Nc6 {[%clk 0:02:59]} 7. d3 {[%clk 0:03:01]}  d6 {[%clk 0:02:59]} 8. O-O {[%clk 0:03:01]}  Rb8 {[%clk 0:02:58]} 9. f4 {[%clk 0:03:00]}  a6 {[%clk 0:02:58]} 10. a4 {[%clk 0:03:01]}  Bd7 {[%clk 0:02:51]} 11. Be3 {[%clk 0:02:57]}  Ng4 {[%clk 0:02:45]} 12. Bd2 {[%clk 0:02:57]}  Nd4 {[%clk 0:02:43]} 13. h3 {[%clk 0:02:54]}  Nf6 {[%clk 0:02:40]} 14. Be3 {[%clk 0:02:49]}  Ne8 {[%clk 0:02:35]} 15. a5 {[%clk 0:02:21]}  b5 {[%clk 0:02:20]} 16. axb6 {[%clk 0:02:16]}  Qxb6 {[%clk 0:02:19]} 17. Nd5 {[%clk 0:01:54]}  Qd8 {[%clk 0:02:17]} 18. Ra2 {[%clk 0:01:25]}  Nc7 {[%clk 0:02:04]} 19. Nxc7 {[%clk 0:01:22]}  Qxc7 {[%clk 0:02:03]} 20. Nxd4 {[%clk 0:01:19]}  cxd4 {[%clk 0:02:00]} 21. Bd2 {[%clk 0:01:20]}  Rb7 {[%clk 0:01:35]} 22. b4 {[%clk 0:01:19]}  Ra7 {[%clk 0:01:21]} 23. Qc2 {[%clk 0:01:12]}  Rfa8 {[%clk 0:01:09]} 24. Rfa1 {[%clk 0:01:11]}  e5 {[%clk 0:01:03]} 25. fxe5 {[%clk 0:01:04]}  dxe5 {[%clk 0:01:04]} 26. Ra5 {[%clk 0:00:59]}  f6 {[%clk 0:00:55]} 27. R1a3 {[%clk 0:00:57]}  Bf8 {[%clk 0:00:54]} 28. Ra2 {[%clk 0:00:49]}  Be6 {[%clk 0:00:46]} 29. Kh2 {[%clk 0:00:47]}  Be7 {[%clk 0:00:42]} 30. Bf1 {[%clk 0:00:44]}  Kf7 {[%clk 0:00:38]} 31. Qb1 {[%clk 0:00:40]}  Qb7 {[%clk 0:00:35]} 32. Qa1 {[%clk 0:00:34]}  Bd6 {[%clk 0:00:29]} 33. b5 {[%clk 0:00:31]}  Bc7 {[%clk 0:00:21]} 34. Rxa6 {[%clk 0:00:29]}  Rxa6 {[%clk 0:00:19]} 35. Rxa6 {[%clk 0:00:25]}  Rxa6 {[%clk 0:00:19]} 36. Qxa6 {[%clk 0:00:26]}  Qxa6 {[%clk 0:00:18]} 37. bxa6 {[%clk 0:00:26]}  Bb6 {[%clk 0:00:17]} 38. Ba5 {[%clk 0:00:20]}  Bc5 {[%clk 0:00:13]} 39. a7 {[%clk 0:00:13]}  Bxa7 {[%clk 0:00:12]} 40. Bb4 {[%clk 0:00:14]}  Bb6 {[%clk 0:00:09]} 41. Be2 {[%clk 0:00:13]}  Bd7 {[%clk 0:00:08]} 42. Bd1 {[%clk 0:00:10]}  Bc6 {[%clk 0:00:08]} 43. c5 {[%clk 0:00:09]}  Bc7 {[%clk 0:00:08]} 44. Bb3+ {[%clk 0:00:09]}  Kg7 {[%clk 0:00:07]} 45. Bd5 {[%clk 0:00:09]}  Bd7 {[%clk 0:00:04]} 46. h4 {[%clk 0:00:06]}  h5 {[%clk 0:00:04]} 47. Kg2 {[%clk 0:00:06]}  f5 {[%clk 0:00:03]} 48. Kf3 {[%clk 0:00:06]}  f4 {[%clk 0:00:00]} 49. gxf4 {[%clk 0:00:06]} 1-0


[Site "https://www.chess.com"]

[Event "Titled Tuesday Blitz August 1 Late 2023"]
[White "Chor, Kevin"]
[Black "Davidson, Kevin"]
[WhiteFideId "2090740"]
[BlackFideId "2056810"]
[WhiteElo "2513"]
[BlackElo "2416"]
[Result "1-0"]
[Round "11"]
[TimeControl "180+1"]
[Date "2023.08.01"]
[WhiteClock "0:00:34"]
[BlackClock "0:00:00"]
[Board "61"]

1. e4 {[%clk 0:03:00]}  c5 {[%clk 0:02:56]} 2. Nf3 {[%clk 0:03:01]}  d6 {[%clk 0:02:52]} 3. d4 {[%clk 0:03:01]}  cxd4 {[%clk 0:02:43]} 4. Nxd4 {[%clk 0:03:02]}  Nf6 {[%clk 0:02:43]} 5. Nc3 {[%clk 0:03:02]}  a6 {[%clk 0:02:43]} 6. Be2 {[%clk 0:03:02]}  e5 {[%clk 0:02:40]} 7. Nb3 {[%clk 0:03:00]}  Be7 {[%clk 0:02:39]} 8. O-O {[%clk 0:03:00]}  O-O {[%clk 0:02:38]} 9. Be3 {[%clk 0:03:01]}  Be6 {[%clk 0:02:35]} 10. Nd5 {[%clk 0:03:00]}  Nxd5 {[%clk 0:02:28]} 11. exd5 {[%clk 0:03:01]}  Bf5 {[%clk 0:02:28]} 12. Qd2 {[%clk 0:03:02]}  Nd7 {[%clk 0:02:28]} 13. Na5 {[%clk 0:03:01]}  Qc7 {[%clk 0:02:22]} 14. c4 {[%clk 0:03:01]}  Nc5 {[%clk 0:02:04]} 15. f3 {[%clk 0:02:53]}  Rfe8 {[%clk 0:01:52]} 16. b4 {[%clk 0:02:52]}  Nd7 {[%clk 0:01:52]} 17. Rac1 {[%clk 0:02:52]}  Bf8 {[%clk 0:01:42]} 18. Rfd1 {[%clk 0:02:50]}  Rac8 {[%clk 0:01:34]} 19. Nb3 {[%clk 0:02:20]}  Qb8 {[%clk 0:01:30]} 20. c5 {[%clk 0:02:17]}  Nf6 {[%clk 0:01:13]} 21. c6 {[%clk 0:02:08]}  b5 {[%clk 0:01:04]} 22. a4 {[%clk 0:02:06]}  bxa4 {[%clk 0:00:58]} 23. Na5 {[%clk 0:02:06]}  Qa8 {[%clk 0:00:46]} 24. Qa2 {[%clk 0:02:02]}  e4 {[%clk 0:00:42]} 25. f4 {[%clk 0:01:59]}  Ng4 {[%clk 0:00:40]} 26. Bxg4 {[%clk 0:01:45]}  Bxg4 {[%clk 0:00:40]} 27. Rd2 {[%clk 0:01:44]}  f5 {[%clk 0:00:30]} 28. Nc4 {[%clk 0:01:36]}  Rb8 {[%clk 0:00:25]} 29. Qxa4 {[%clk 0:01:25]}  Bh5 {[%clk 0:00:17]} 30. c7 {[%clk 0:01:16]}  Rb5 {[%clk 0:00:13]} 31. Nb6 {[%clk 0:00:44]}  Qa7 {[%clk 0:00:06]} 32. Rc6 {[%clk 0:00:43]}  Bf7 {[%clk 0:00:02]} 33. Ra2 {[%clk 0:00:36]}  Ra8 {[%clk 0:00:01]} 34. Qxb5 {[%clk 0:00:34]}  axb5 {[%clk 0:00:01]} 35. Rxa7 {[%clk 0:00:33]}  Rxa7 {[%clk 0:00:01]} 36. c8=Q {[%clk 0:00:34]}  Ra1+ {[%clk 0:00:01]} 37. Rc1 {[%clk 0:00:35]}  Ra2 {[%clk 0:00:00]} 38. Nd7 {[%clk 0:00:34]} 1-0


[Site "https://www.chess.com"]

[Event "Titled Tuesday Blitz August 1 Late 2023"]
[White "Lopez Gracia, Fernando"]
[Black "Jovic, Stanoje"]
[WhiteFideId "2207184"]
[BlackFideId "905020"]
[WhiteElo "2339"]
[BlackElo "2499"]
[Result "0-1"]
[Round "11"]
[TimeControl "180+1"]
[Date "2023.08.01"]
[WhiteClock "0:00:15"]
[BlackClock "0:00:28"]
[Board "65"]

1. e4 {[%clk 0:03:00]}  c6 {[%clk 0:02:59]} 2. Nf3 {[%clk 0:03:00]}  d5 {[%clk 0:02:59]} 3. d3 {[%clk 0:03:00]}  dxe4 {[%clk 0:02:59]} 4. dxe4 {[%clk 0:03:00]}  Qxd1+ {[%clk 0:02:59]} 5. Kxd1 {[%clk 0:03:01]}  Bg4 {[%clk 0:02:58]} 6. Nd2 {[%clk 0:02:58]}  Nd7 {[%clk 0:02:57]} 7. h3 {[%clk 0:02:55]}  Bxf3+ {[%clk 0:02:57]} 8. Nxf3 {[%clk 0:02:56]}  e5 {[%clk 0:02:56]} 9. a4 {[%clk 0:02:51]}  Bc5 {[%clk 0:02:55]} 10. c3 {[%clk 0:02:49]}  Bxf2 {[%clk 0:02:53]} 11. Bc4 {[%clk 0:02:47]}  Ngf6 {[%clk 0:02:50]} 12. Ke2 {[%clk 0:02:40]}  Bg3 {[%clk 0:02:47]} 13. Bd3 {[%clk 0:02:31]}  Nc5 {[%clk 0:02:41]} 14. Nd2 {[%clk 0:02:07]}  Nxd3 {[%clk 0:02:35]} 15. Kxd3 {[%clk 0:02:06]}  O-O-O+ {[%clk 0:02:33]} 16. Ke2 {[%clk 0:02:02]}  Bf4 {[%clk 0:02:29]} 17. Rf1 {[%clk 0:01:51]}  Rd7 {[%clk 0:02:18]} 18. Nc4 {[%clk 0:01:43]}  Bxc1 {[%clk 0:02:16]} 19. Raxc1 {[%clk 0:01:44]}  Nxe4 {[%clk 0:02:09]} 20. Rf3 {[%clk 0:01:22]}  f6 {[%clk 0:02:05]} 21. a5 {[%clk 0:01:22]}  Rhd8 {[%clk 0:02:02]} 22. Rc2 {[%clk 0:01:16]}  Kc7 {[%clk 0:01:59]} 23. b4 {[%clk 0:01:15]}  b5 {[%clk 0:01:58]} 24. axb6+ {[%clk 0:01:11]}  axb6 {[%clk 0:01:57]} 25. Ra2 {[%clk 0:01:10]}  Kb7 {[%clk 0:01:53]} 26. Re3 {[%clk 0:01:05]}  Nd6 {[%clk 0:01:41]} 27. Nxd6+ {[%clk 0:01:02]}  Rxd6 {[%clk 0:01:40]} 28. c4 {[%clk 0:01:03]}  Ra8 {[%clk 0:01:34]} 29. Rb2 {[%clk 0:01:03]}  Ra1 {[%clk 0:01:30]} 30. c5 {[%clk 0:01:02]}  Rdd1 {[%clk 0:01:28]} 31. Kf2 {[%clk 0:00:57]}  Rf1+ {[%clk 0:01:23]} 32. Kg3 {[%clk 0:00:56]}  Rfe1 {[%clk 0:01:09]} 33. Rd3 {[%clk 0:00:53]}  Red1 {[%clk 0:01:07]} 34. Rc3 {[%clk 0:00:43]}  b5 {[%clk 0:01:07]} 35. Kg4 {[%clk 0:00:39]}  g6 {[%clk 0:01:01]} 36. Rf3 {[%clk 0:00:39]}  Rf1 {[%clk 0:00:59]} 37. Rd3 {[%clk 0:00:38]}  Rad1 {[%clk 0:00:59]} 38. Ra3 {[%clk 0:00:37]}  Ra1 {[%clk 0:00:54]} 39. Rd3 {[%clk 0:00:36]}  Rfd1 {[%clk 0:00:54]} 40. Rf3 {[%clk 0:00:37]}  Rd4+ {[%clk 0:00:52]} 41. Kg3 {[%clk 0:00:34]}  f5 {[%clk 0:00:52]} 42. Rff2 {[%clk 0:00:23]}  Ra4 {[%clk 0:00:50]} 43. Rfe2 {[%clk 0:00:22]}  e4 {[%clk 0:00:48]} 44. Kf4 {[%clk 0:00:19]}  Raxb4 {[%clk 0:00:47]} 45. Ra2 {[%clk 0:00:18]}  Ra4 {[%clk 0:00:47]} 46. Rab2 {[%clk 0:00:18]}  Rdc4 {[%clk 0:00:44]} 47. g4 {[%clk 0:00:14]}  Rxc5 {[%clk 0:00:43]} 48. gxf5 {[%clk 0:00:13]}  Rxf5+ {[%clk 0:00:42]} 49. Ke3 {[%clk 0:00:12]}  Rh5 {[%clk 0:00:41]} 50. Rf2 {[%clk 0:00:09]}  Rxh3+ {[%clk 0:00:40]} 51. Ke2 {[%clk 0:00:09]}  e3 {[%clk 0:00:38]} 52. Rf7+ {[%clk 0:00:09]}  Kb6 {[%clk 0:00:39]} 53. Rb3 {[%clk 0:00:09]}  Ra2+ {[%clk 0:00:38]} 54. Ke1 {[%clk 0:00:07]}  Rh1+ {[%clk 0:00:37]} 55. Rf1 {[%clk 0:00:07]}  Ra1+ {[%clk 0:00:37]} 56. Ke2 {[%clk 0:00:08]}  Rhxf1 {[%clk 0:00:37]} 57. Kxe3 {[%clk 0:00:09]}  Rae1+ {[%clk 0:00:36]} 58. Kd2 {[%clk 0:00:09]}  Re5 {[%clk 0:00:33]} 59. Rh3 {[%clk 0:00:08]}  Rh5 {[%clk 0:00:33]} 60. Rg3 {[%clk 0:00:07]}  Rh2+ {[%clk 0:00:30]} 61. Kd3 {[%clk 0:00:07]}  Rhf2 {[%clk 0:00:30]} 62. Ke4 {[%clk 0:00:06]}  Rf5 {[%clk 0:00:29]} 63. Rh3 {[%clk 0:00:05]}  R1f4+ {[%clk 0:00:29]} 64. Ke3 {[%clk 0:00:04]}  Rf3+ {[%clk 0:00:30]} 65. Rxf3 {[%clk 0:00:05]}  Rxf3+ {[%clk 0:00:30]} 66. Kxf3 {[%clk 0:00:06]}  b4 {[%clk 0:00:30]} 67. Ke3 {[%clk 0:00:07]}  h5 {[%clk 0:00:29]} 68. Kd3 {[%clk 0:00:08]}  h4 {[%clk 0:00:29]} 69. Kc4 {[%clk 0:00:09]}  h3 {[%clk 0:00:29]} 70. Kxb4 {[%clk 0:00:10]}  h2 {[%clk 0:00:29]} 71. Kc4 {[%clk 0:00:10]}  h1=Q {[%clk 0:00:29]} 72. Kd4 {[%clk 0:00:11]}  Qd5+ {[%clk 0:00:29]} 73. Kc3 {[%clk 0:00:12]}  g5 {[%clk 0:00:28]} 74. Kb2 {[%clk 0:00:12]}  g4 {[%clk 0:00:28]} 75. Kc3 {[%clk 0:00:13]}  g3 {[%clk 0:00:29]} 76. Kc2 {[%clk 0:00:14]}  g2 {[%clk 0:00:29]} 77. Kc3 {[%clk 0:00:14]}  g1=Q {[%clk 0:00:28]} 78. Kc2 {[%clk 0:00:15]}  Qf2+ {[%clk 0:00:28]} 79. Kc3 {[%clk 0:00:15]}  Qfd2# {[%clk 0:00:28]} 0-1


[Site "https://www.chess.com"]

[Event "Titled Tuesday Blitz August 1 Late 2023"]
[White "Urbina Perez, Juan Antonio"]
[Black "Goltsev, Dmitry"]
[WhiteFideId "2217368"]
[BlackFideId "24176710"]
[WhiteElo "2442"]
[BlackElo "2622"]
[Result "1/2-1/2"]
[Round "11"]
[TimeControl "180+1"]
[Date "2023.08.01"]
[WhiteClock "0:00:14"]
[BlackClock "0:00:09"]
[Board "69"]

1. d4 {[%clk 0:02:57]}  Nf6 {[%clk 0:03:00]} 2. c4 {[%clk 0:02:56]}  e6 {[%clk 0:02:59]} 3. Nf3 {[%clk 0:02:56]}  b6 {[%clk 0:02:59]} 4. g3 {[%clk 0:02:56]}  Bb7 {[%clk 0:03:00]} 5. Bg2 {[%clk 0:02:56]}  Bb4+ {[%clk 0:03:01]} 6. Bd2 {[%clk 0:02:54]}  Be7 {[%clk 0:02:59]} 7. O-O {[%clk 0:02:54]}  d5 {[%clk 0:03:00]} 8. cxd5 {[%clk 0:02:53]}  exd5 {[%clk 0:03:00]} 9. Nc3 {[%clk 0:02:53]}  O-O {[%clk 0:03:00]} 10. Bf4 {[%clk 0:02:53]}  c5 {[%clk 0:03:01]} 11. Rc1 {[%clk 0:02:52]}  Nc6 {[%clk 0:03:01]} 12. h4 {[%clk 0:02:51]}  Ne4 {[%clk 0:02:57]} 13. dxc5 {[%clk 0:02:31]}  Nxc3 {[%clk 0:02:39]} 14. bxc3 {[%clk 0:02:26]}  bxc5 {[%clk 0:02:37]} 15. Ne5 {[%clk 0:02:18]}  Nxe5 {[%clk 0:02:26]} 16. Bxe5 {[%clk 0:02:17]}  Qd7 {[%clk 0:02:23]} 17. Rb1 {[%clk 0:02:12]}  Bc6 {[%clk 0:02:23]} 18. e4 {[%clk 0:01:53]}  Rfd8 {[%clk 0:02:01]} 19. exd5 {[%clk 0:01:46]}  Bxd5 {[%clk 0:02:02]} 20. Bxd5 {[%clk 0:01:44]}  Qxd5 {[%clk 0:01:57]} 21. Qxd5 {[%clk 0:01:44]}  Rxd5 {[%clk 0:01:58]} 22. Bf4 {[%clk 0:01:45]}  Bf6 {[%clk 0:01:57]} 23. c4 {[%clk 0:01:40]}  Rd4 {[%clk 0:01:55]} 24. Rfc1 {[%clk 0:01:36]}  Re4 {[%clk 0:01:45]} 25. Be3 {[%clk 0:01:32]}  Bd4 {[%clk 0:01:34]} 26. Bxd4 {[%clk 0:01:32]}  Rxd4 {[%clk 0:01:34]} 27. Rb5 {[%clk 0:01:30]}  Rc8 {[%clk 0:01:33]} 28. Rb7 {[%clk 0:01:30]}  g6 {[%clk 0:01:24]} 29. Rxa7 {[%clk 0:01:30]}  Rd2 {[%clk 0:01:24]} 30. a4 {[%clk 0:01:27]}  Rb8 {[%clk 0:01:22]} 31. Rc7 {[%clk 0:01:25]}  Rbb2 {[%clk 0:01:22]} 32. Rf1 {[%clk 0:01:25]}  Ra2 {[%clk 0:01:22]} 33. Rxc5 {[%clk 0:01:25]}  Rdc2 {[%clk 0:01:22]} 34. a5 {[%clk 0:01:24]}  Kg7 {[%clk 0:01:21]} 35. Kg2 {[%clk 0:01:24]}  h5 {[%clk 0:01:21]} 36. Kg1 {[%clk 0:01:24]}  Kf6 {[%clk 0:01:20]} 37. Rc6+ {[%clk 0:01:24]}  Kf5 {[%clk 0:01:20]} 38. a6 {[%clk 0:01:23]}  Ke4 {[%clk 0:01:17]} 39. Kg2 {[%clk 0:01:23]}  Kf5 {[%clk 0:01:14]} 40. c5 {[%clk 0:01:20]}  Ke5 {[%clk 0:01:12]} 41. Re1+ {[%clk 0:01:15]}  Kd5 {[%clk 0:01:11]} 42. Rf6 {[%clk 0:01:14]}  Kxc5 {[%clk 0:01:11]} 43. Re5+ {[%clk 0:01:09]}  Kd4 {[%clk 0:01:09]} 44. Re7 {[%clk 0:01:09]}  Rc1 {[%clk 0:01:07]} 45. Rexf7 {[%clk 0:01:08]}  Raa1 {[%clk 0:01:06]} 46. Rd7+ {[%clk 0:00:53]}  Ke4 {[%clk 0:01:04]} 47. Re7+ {[%clk 0:00:49]}  Kd5 {[%clk 0:01:00]} 48. Rxg6 {[%clk 0:00:46]}  Rg1+ {[%clk 0:00:59]} 49. Kf3 {[%clk 0:00:46]}  Ra3+ {[%clk 0:00:57]} 50. Re3 {[%clk 0:00:47]}  Ra2 {[%clk 0:00:57]} 51. Rg5+ {[%clk 0:00:46]}  Kd4 {[%clk 0:00:57]} 52. Rxh5 {[%clk 0:00:43]}  Rxa6 {[%clk 0:00:57]} 53. Re4+ {[%clk 0:00:43]}  Kd3 {[%clk 0:00:57]} 54. Rd5+ {[%clk 0:00:42]}  Kc3 {[%clk 0:00:58]} 55. Rde5 {[%clk 0:00:43]}  Rf1 {[%clk 0:00:56]} 56. Re1 {[%clk 0:00:39]}  Rf6+ {[%clk 0:00:55]} 57. Kg4 {[%clk 0:00:39]}  R1xf2 {[%clk 0:00:55]} 58. R1e3+ {[%clk 0:00:38]}  Kd4 {[%clk 0:00:55]} 59. Re6 {[%clk 0:00:38]}  Rf8 {[%clk 0:00:54]} 60. Re2 {[%clk 0:00:37]}  Rg8+ {[%clk 0:00:51]} 61. Kh3 {[%clk 0:00:36]}  Rf3 {[%clk 0:00:51]} 62. Rd2+ {[%clk 0:00:35]}  Kc5 {[%clk 0:00:50]} 63. Rg2 {[%clk 0:00:35]}  Kd5 {[%clk 0:00:50]} 64. Ree2 {[%clk 0:00:35]}  Rf1 {[%clk 0:00:50]} 65. h5 {[%clk 0:00:32]}  Rh1+ {[%clk 0:00:45]} 66. Rh2 {[%clk 0:00:32]}  Rg1 {[%clk 0:00:46]} 67. Reg2 {[%clk 0:00:32]}  Rf1 {[%clk 0:00:46]} 68. g4 {[%clk 0:00:31]}  Ke5 {[%clk 0:00:43]} 69. Kh4 {[%clk 0:00:31]}  Rf4 {[%clk 0:00:40]} 70. h6 {[%clk 0:00:28]}  Kf6 {[%clk 0:00:39]} 71. Kh5 {[%clk 0:00:28]}  Rg5+ {[%clk 0:00:26]} 72. Kh4 {[%clk 0:00:25]}  Kg6 {[%clk 0:00:27]} 73. h7 {[%clk 0:00:25]}  Rf8 {[%clk 0:00:18]} 74. Kg3 {[%clk 0:00:19]}  Ra5 {[%clk 0:00:19]} 75. Rf2 {[%clk 0:00:19]}  Rh8 {[%clk 0:00:16]} 76. Rd2 {[%clk 0:00:15]}  Ra3+ {[%clk 0:00:13]} 77. Kg2 {[%clk 0:00:15]}  Ra4 {[%clk 0:00:11]} 78. Rd6+ {[%clk 0:00:15]}  Kg5 {[%clk 0:00:10]} 79. Rd5+ {[%clk 0:00:14]}  Kxg4 {[%clk 0:00:10]} 80. Rd2 {[%clk 0:00:13]}  Re4 {[%clk 0:00:07]} 81. Rf2 {[%clk 0:00:13]}  Re7 {[%clk 0:00:06]} 82. Kf1 {[%clk 0:00:12]}  Rexh7 {[%clk 0:00:03]} 83. Rfg2+ {[%clk 0:00:12]}  Kf3 {[%clk 0:00:03]} 84. Rf2+ {[%clk 0:00:12]}  Ke3 {[%clk 0:00:04]} 85. Re2+ {[%clk 0:00:12]}  Kd3 {[%clk 0:00:04]} 86. Rd2+ {[%clk 0:00:12]}  Ke3 {[%clk 0:00:04]} 87. Rde2+ {[%clk 0:00:12]}  Kf3 {[%clk 0:00:04]} 88. Rhf2+ {[%clk 0:00:11]}  Kg4 {[%clk 0:00:04]} 89. Rg2+ {[%clk 0:00:11]}  Kf4 {[%clk 0:00:05]} 90. Ref2+ {[%clk 0:00:11]}  Ke3 {[%clk 0:00:05]} 91. Re2+ {[%clk 0:00:11]}  Kd4 {[%clk 0:00:06]} 92. Rd2+ {[%clk 0:00:12]}  Kc5 {[%clk 0:00:06]} 93. Rc2+ {[%clk 0:00:12]}  Kd6 {[%clk 0:00:07]} 94. Rcd2+ {[%clk 0:00:12]}  Ke7 {[%clk 0:00:07]} 95. Rde2+ {[%clk 0:00:13]}  Kd6 {[%clk 0:00:07]} 96. Rd2+ {[%clk 0:00:13]}  Ke7 {[%clk 0:00:08]} 97. Rde2+ {[%clk 0:00:13]}  Kd6 {[%clk 0:00:09]} 98. Rd2+ {[%clk 0:00:14]} 1/2-1/2


[Site "https://www.chess.com"]

[Event "Titled Tuesday Blitz August 1 Late 2023"]
[White "Polaczek, Richard"]
[Black "Suder, Jakub"]
[WhiteFideId "200026"]
[BlackFideId "1195310"]
[WhiteElo "2415"]
[BlackElo "2566"]
[Result "0-1"]
[Round "11"]
[TimeControl "180+1"]
[Date "2023.08.01"]
[WhiteClock "0:00:00"]
[BlackClock "0:00:05"]
[Board "71"]

1. d4 {[%clk 0:02:59]}  d5 {[%clk 0:02:57]} 2. c4 {[%clk 0:02:57]}  dxc4 {[%clk 0:02:51]} 3. e3 {[%clk 0:02:56]}  e5 {[%clk 0:02:49]} 4. Bxc4 {[%clk 0:02:55]}  exd4 {[%clk 0:02:48]} 5. exd4 {[%clk 0:02:55]}  Nf6 {[%clk 0:02:47]} 6. Nf3 {[%clk 0:02:53]}  Be7 {[%clk 0:02:45]} 7. O-O {[%clk 0:02:51]}  O-O {[%clk 0:02:44]} 8. Nc3 {[%clk 0:02:49]}  Nbd7 {[%clk 0:02:43]} 9. h3 {[%clk 0:02:43]}  Nb6 {[%clk 0:02:42]} 10. Bb3 {[%clk 0:02:40]}  c6 {[%clk 0:02:39]} 11. Ne5 {[%clk 0:02:34]}  Nbd5 {[%clk 0:02:33]} 12. Qf3 {[%clk 0:02:28]}  Be6 {[%clk 0:02:31]} 13. Re1 {[%clk 0:02:23]}  Qb6 {[%clk 0:02:11]} 14. Bg5 {[%clk 0:02:00]}  Rad8 {[%clk 0:01:58]} 15. Rad1 {[%clk 0:01:50]}  Nxc3 {[%clk 0:01:41]} 16. Bxe6 {[%clk 0:01:48]}  Nxd1 {[%clk 0:01:32]} 17. Nxf7 {[%clk 0:01:37]}  Rxf7 {[%clk 0:01:30]} 18. Rxd1 {[%clk 0:01:23]}  Rxd4 {[%clk 0:01:12]} 19. Bxf6 {[%clk 0:00:48]}  Bxf6 {[%clk 0:00:39]} 20. Rxd4 {[%clk 0:00:46]}  Qxd4 {[%clk 0:00:37]} 21. Qb3 {[%clk 0:00:45]}  Qxb2 {[%clk 0:00:30]} 22. Bxf7+ {[%clk 0:00:44]}  Kf8 {[%clk 0:00:29]} 23. Qe6 {[%clk 0:00:32]}  Qe5 {[%clk 0:00:27]} 24. Qxe5 {[%clk 0:00:21]}  Bxe5 {[%clk 0:00:26]} 25. Be6 {[%clk 0:00:20]}  Ke7 {[%clk 0:00:25]} 26. Bf5 {[%clk 0:00:16]}  g6 {[%clk 0:00:22]} 27. Be4 {[%clk 0:00:16]}  Kd6 {[%clk 0:00:21]} 28. g3 {[%clk 0:00:15]}  b5 {[%clk 0:00:20]} 29. Kf1 {[%clk 0:00:15]}  a5 {[%clk 0:00:20]} 30. Ke2 {[%clk 0:00:14]}  c5 {[%clk 0:00:14]} 31. h4 {[%clk 0:00:13]}  c4 {[%clk 0:00:13]} 32. h5 {[%clk 0:00:12]}  gxh5 {[%clk 0:00:08]} 33. Bxh7 {[%clk 0:00:11]}  Bf6 {[%clk 0:00:06]} 34. Bg8 {[%clk 0:00:09]}  Kc5 {[%clk 0:00:04]} 35. Kd2 {[%clk 0:00:07]}  b4 {[%clk 0:00:04]} 36. Kc2 {[%clk 0:00:06]}  a4 {[%clk 0:00:04]} 37. Bf7 {[%clk 0:00:03]}  b3+ {[%clk 0:00:04]} 38. axb3 {[%clk 0:00:02]}  axb3+ {[%clk 0:00:05]} 39. Kb1 {[%clk 0:00:00]}  Kb4 {[%clk 0:00:05]} 0-1


[Site "https://www.chess.com"]